bitfinex-derivatives/quotes_BNBF0:USTF0_20250511
["timestamp","ask_amount","ask_price","bid_price","bid_amount"]
[1746975380938,0.30648053,652.57,651.36,0.25699195]
[1746975381144,0.30648053,652.57,651.37,1.14421617]
[1746975381343,0.30648053,652.57,651.37,1.40120812]
[1746975381541,0.30648053,652.57,651.38,0.25699195]
[1746975381739,0.30648053,652.57,651.39,1.14421617]
[1746975382043,0.30648053,652.57,651.4,0.25699195]
[1746975382242,0.30648053,652.57,651.4,1.14421617]
[1746975382647,0.30648053,652.57,651.41,0.25709325]
[1746975382844,0.30648053,652.57,651.42,1.14421617]
[1746975383139,0.30648053,652.57,651.43,1.14421617]
[1746975383445,0.30648053,652.57,651.44,1.40130942]
[1746975383746,0.30648053,652.57,651.45,0.25709325]
[1746975384046,0.30648053,652.57,651.46,1.40130942]
[1746975384340,0.30648053,652.57,651.47,1.40130942]
[1746975384645,0.30648053,652.57,651.48,1.14421617]
[1746975384846,0.30648053,652.57,651.48,1.40130942]
[1746975385149,0.30648053,652.57,651.49,0.25709325]
[1746975385346,0.30648053,652.57,651.49,1.40130942]
[1746975385746,0.30648053,652.57,651.5,0.25709325]
[1746975386046,0.30648053,652.57,651.51,1.14421617]
[1746975386346,0.30648053,652.57,651.52,0.25709325]
[1746975386647,0.30648053,652.57,651.53,1.14421617]
[1746975386848,0.30648053,652.57,651.54,1.14421617]
[1746975387041,0.30648053,652.57,651.54,1.40130942]
[1746975387346,0.30648053,652.57,651.55,0.25709325]
[1746975387546,0.30648053,652.57,651.55,1.40130942]
[1746975387747,0.30648053,652.57,651.56,1.14421617]
[1746975388046,0.30648053,652.57,651.57,0.25709325]
[1746975388546,0.30648053,652.57,651.58,1.40130942]
[1746975389150,0.30648053,652.57,651.59,1.40130942]
[1746975389452,0.30648053,652.57,651.6,0.25709325]
[1746975389945,0.30648053,652.57,651.61,1.40130942]
[1746975390245,0.30648053,652.57,651.62,1.40130942]
[1746975390444,0.30648053,652.57,651.63,1.14421617]
[1746975390749,0.30648053,652.57,651.63,1.40130942]
[1746975390948,0.30648053,652.57,651.64,0.25709325]
[1746975391150,0.30648053,652.57,651.64,1.14421617]
[1746975391348,0.30648053,652.57,651.65,1.14421617]
[1746975391547,0.30648053,652.57,651.65,1.40139468]
[1746975391752,0.30648053,652.57,651.66,1.14421617]
[1746975391950,0.30648053,652.57,651.66,1.40139468]
[1746975392350,0.30648053,652.57,651.67,1.40139468]
[1746975392647,0.30648053,652.57,651.68,1.14421617]
[1746975392851,0.30648053,652.57,651.68,1.40139468]
[1746975393150,0.30648053,652.57,651.69,1.40139468]
[1746975393451,0.30648053,652.57,651.7,0.25717851]
[1746975393752,0.30648053,652.57,651.71,0.25717851]
[1746975394154,0.30648053,652.57,651.72,0.25717851]
[1746975394352,0.30648053,652.57,651.73,1.14421617]
[1746975394549,0.30648053,652.57,651.73,1.40139468]
[1746975394951,0.30648053,652.57,651.74,1.40139468]
[1746975395247,0.30648053,652.57,651.75,0.25717851]
[1746975395453,0.30648053,652.57,651.75,1.40139468]
[1746975395653,0.30648053,652.57,651.76,1.40139468]
[1746975395850,0.30648053,652.57,651.77,0.25717851]
[1746975396150,0.30648053,652.57,651.78,1.14421617]
[1746975396451,0.30648053,652.57,651.79,0.25716213]
[1746975396658,0.30648053,652.57,651.79,1.4013783]
[1746975396950,0.30648053,652.57,651.8,1.4013783]
[1746975397155,0.30648053,652.57,651.81,0.25716213]
[1746975397456,0.30648053,652.57,651.82,1.4013783]
[1746975397754,0.30648053,652.57,651.83,0.25716213]
[1746975397954,0.30648053,652.57,651.83,1.4013783]
[1746975398149,0.30648053,652.57,651.84,0.25716213]
[1746975398455,0.30648053,652.57,651.85,1.14421617]
[1746975398652,0.30648053,652.57,651.85,1.4013783]
[1746975399051,0.30648053,652.57,651.86,1.14421617]
[1746975399355,0.30648053,652.57,651.87,1.14421617]
[1746975399651,0.30648053,652.57,651.88,1.4013783]
[1746975399951,0.30648053,652.57,651.89,0.25716213]
[1746975400152,0.30648053,652.57,651.9,1.14421617]
[1746975400453,0.30648053,652.57,651.9,1.4013783]
[1746975400655,0.30648053,652.57,651.91,1.14421617]
[1746975400951,0.30648053,652.57,651.92,1.4013783]
[1746975401356,0.30648053,652.57,651.93,0.25716213]
[1746975401557,0.30648053,652.57,651.94,1.14421617]
[1746975402057,0.30648053,652.57,651.1,0.96632303]
[1746975402058,0.30648053,652.57,651.95,1.4013783]
[1746975402456,0.30648053,652.57,651.96,1.4013783]
[1746975402656,0.30648053,652.57,651.96,1.14421617]
[1746975402958,0.30648053,652.57,651.97,0.25722522]
[1746975403158,0.30648053,652.57,651.97,1.40144139]
[1746975403354,0.30648053,652.57,651.98,1.14421617]
[1746975403553,0.30648053,652.57,651.98,1.40145185]
[1746975403955,0.30648053,652.57,651.99,1.14421617]
[1746975404156,0.30648053,652.57,651.99,1.40145185]
[1746975404355,0.30648053,652.57,652.0,1.40145185]
[1746975404758,0.30648053,652.57,652.01,0.25723568]
[1746975405058,0.30648053,652.57,652.02,1.14421617]
[1746975405258,0.30648053,652.57,652.03,0.25723568]
[1746975405559,0.30648053,652.57,652.04,1.14421617]
[1746975405957,0.30648053,652.57,652.05,0.25723568]
[1746975406154,0.30648053,652.57,652.06,1.14421617]
[1746975406659,0.30648053,652.57,652.07,0.25723568]
[1746975406960,0.30648053,652.57,652.07,1.40145185]
[1746975407459,0.30648053,652.57,652.08,0.25723568]
[1746975407659,0.30648053,652.57,652.09,1.14421617]
[1746975408058,0.30648053,652.57,652.1,0.25723568]
[1746975408260,0.30648053,652.57,652.11,1.14421617]
[1746975408559,0.30648053,652.57,652.12,1.14421617]
[1746975408754,0.30648053,652.57,652.13,1.14421617]
[1746975409355,0.30648053,652.57,652.14,0.25723568]
[1746975409558,0.30648053,652.57,652.14,1.40145185]
[1746975409860,0.30648053,652.57,652.15,1.40145185]
[1746975410255,0.30648053,652.57,651.08,0.96632303]
[1746975410256,0.30648053,652.57,652.16,1.40145185]
[1746975410560,0.30648053,652.57,652.17,0.25723568]
[1746975410859,0.30648053,652.57,652.17,1.40145185]
[1746975411059,0.30648053,652.57,652.18,1.14421617]
[1746975411559,0.30648053,652.57,652.19,1.40145185]
[1746975411760,0.30648053,652.57,652.2,1.14421617]
[1746975412063,0.30648053,652.57,652.21,1.40145185]
[1746975412260,0.30648053,652.57,652.22,0.25723568]
[1746975412661,0.30648053,652.57,652.23,1.14421617]
[1746975412862,0.30648053,652.57,652.24,0.25723568]
[1746975413363,0.30648053,652.57,652.25,1.14421617]
[1746975413664,0.30648053,652.57,652.26,1.40145185]
[1746975413962,0.30648053,652.57,652.27,0.25723568]
[1746975414459,0.30648053,652.57,652.28,1.14421617]
[1746975414763,0.30648053,652.57,652.29,0.25723568]
[1746975414963,0.30648053,652.57,652.29,1.40145185]
[1746975415164,0.30648053,652.57,652.3,1.14421617]
[1746975415460,0.30648053,652.57,652.31,0.25723568]
[1746975415765,0.30648053,652.57,652.32,1.14421617]
[1746975416065,0.30648053,652.57,652.33,1.14421617]
[1746975416266,0.30648053,652.57,652.33,1.40145185]
[1746975416459,0.30648053,652.57,652.34,0.25723568]
[1746975416663,0.30648053,652.57,652.35,1.14421617]
[1746975417164,0.30648053,652.57,652.36,0.25723568]
[1746975417365,0.30648053,652.57,652.36,1.40145185]
[1746975417561,0.30648053,652.57,652.36,1.14421617]
[1746975417762,0.30648053,652.57,652.37,1.14421617]
[1746975417961,0.30648053,652.57,652.37,1.40139025]
[1746975418267,0.30648053,652.57,652.38,1.40139025]
[1746975418566,0.30648053,652.57,652.39,1.14421617]
[1746975418763,0.30648053,652.57,652.4,0.25717408]
[1746975419367,0.30648053,652.57,651.29,0.25717408]
[1746975419567,0.30648053,652.57,651.3,1.14110569]
[1746975419770,0.30648053,652.57,651.3,1.39827977]
[1746975419968,0.30648053,652.57,651.3,1.66470859]
[1746975420168,0.30648053,652.57,651.31,1.39827977]
[1746975420470,0.30648053,652.57,651.32,1.39827977]
[1746975420768,0.30648053,652.57,651.33,0.25717408]
[1746975421164,0.30648053,652.57,651.34,1.39827977]
[1746975421572,0.30648053,652.57,651.35,0.25717408]
[1746975421870,0.30648053,652.57,651.36,1.14110569]
[1746975422073,0.30648053,652.57,651.36,1.39827977]
[1746975422266,0.30648053,652.57,651.37,1.39827977]
[1746975422570,0.30648053,652.57,651.38,0.25717408]
[1746975422868,0.30648053,652.57,651.39,1.39827977]
[1746975423370,0.30648053,652.57,651.4,1.39827977]
[1746975423773,0.30648053,652.57,651.41,0.25717408]
[1746975424066,0.30648053,652.57,651.42,1.39827977]
[1746975424272,0.30648053,652.57,651.43,0.25717408]
[1746975424571,0.30648053,652.57,651.44,0.25717408]
[1746975424766,0.30648053,652.57,651.45,1.14110569]
[1746975425072,0.30648053,652.57,651.46,1.14110569]
[1746975425267,0.30648053,652.57,651.46,1.39827977]
[1746975425466,0.30648053,652.57,651.47,1.14110569]
[1746975425769,0.30648053,652.57,651.47,1.39827977]
[1746975425965,0.30648053,652.57,651.48,1.14110569]
[1746975426367,0.30648053,652.57,651.49,1.14110569]
[1746975426772,0.30648053,652.57,651.5,1.39827977]
[1746975427067,0.30648053,652.57,651.51,0.25717408]
[1746975427274,0.30648053,652.57,651.52,1.39827977]
[1746975427773,0.30648053,652.57,651.53,1.39827977]
[1746975428072,0.30648053,652.57,651.54,1.14110569]
[1746975428267,0.30648053,652.57,651.55,1.14110569]
[1746975428470,0.30648053,652.57,651.56,1.39827977]
[1746975428771,0.30648053,652.57,651.57,0.25717408]
[1746975429074,0.30648053,652.57,651.58,1.39827977]
[1746975429372,0.30648053,652.57,651.58,1.14110569]
[1746975429568,0.30648053,652.57,651.59,1.14110569]
[1746975429773,0.30648053,652.57,651.59,1.39834802]
[1746975429973,0.30648053,652.57,651.6,1.14110569]
[1746975430168,0.30648053,652.57,651.6,1.39834802]
[1746975430473,0.30648053,652.57,651.61,1.14110569]
[1746975430673,0.30648053,652.57,651.61,1.39834802]
[1746975430873,0.30648053,652.57,651.62,0.25724233]
[1746975431074,0.30648053,652.57,651.63,1.14110569]
[1746975431374,0.30648053,652.57,651.64,1.14110569]
[1746975431571,0.30648053,652.57,651.65,0.25724233]
[1746975431771,0.30648053,652.57,651.66,1.14110569]
[1746975431969,0.30648053,652.57,651.66,1.39834802]
[1746975432169,0.30648053,652.57,651.67,0.25724233]
[1746975432474,0.30648053,652.57,651.68,1.39834802]
[1746975432775,0.30648053,652.57,651.69,1.39834802]
[1746975433174,0.30648053,652.57,651.7,1.39834802]
[1746975433374,0.30648053,652.57,651.7,1.14110569]
[1746975433575,0.30648053,652.57,651.51,1.14110569]
[1746975433774,0.30648053,652.57,651.71,0.25732902]
[1746975434070,0.30648053,652.57,651.72,1.39843471]
[1746975434369,0.30648053,652.57,651.73,0.25732902]
[1746975434571,0.30648053,652.57,651.74,1.14110569]
[1746975434774,0.30648053,652.57,651.74,1.39843471]
[1746975434975,0.30648053,652.57,651.75,1.14110569]
[1746975435275,0.30648053,652.57,651.75,1.39843471]
[1746975435475,0.30648053,652.57,651.76,0.25732902]
[1746975435775,0.30648053,652.57,651.77,0.25732902]
[1746975436176,0.30648053,652.57,651.78,1.39843471]
[1746975436775,0.30648053,652.57,651.79,1.39843471]
[1746975436980,0.30648053,652.57,651.8,1.14110569]
[1746975437174,0.30648053,652.57,651.8,1.39843471]
[1746975437375,0.30648053,652.57,651.8,1.14110569]
[1746975437572,0.30648053,652.57,651.81,1.14110569]
[1746975437778,0.30648053,652.57,651.81,1.39847188]
[1746975437977,0.30648053,652.57,651.82,1.14110569]
[1746975438177,0.30648053,652.57,651.82,1.39847188]
[1746975438476,0.30648053,652.57,651.83,0.25736619]
[1746975438673,0.30648053,652.57,651.84,1.14110569]
[1746975439177,0.30648053,652.57,651.85,0.25736619]
[1746975439381,0.30648053,652.57,651.86,1.14110569]
[1746975440178,0.30648053,652.57,651.87,0.25736619]
[1746975440680,0.30648053,652.57,651.88,1.14110569]
[1746975441179,0.30648053,652.57,651.89,0.25736619]
[1746975441479,0.30648053,652.57,651.9,1.14110569]
[1746975441676,0.30648053,652.57,651.91,0.25736619]
[1746975441974,0.30648053,652.57,651.92,1.14110569]
[1746975442380,0.30648053,652.57,651.93,0.25736619]
[1746975442880,0.30648053,652.57,651.94,1.14110569]
[1746975443280,0.30648053,652.57,651.95,0.25736619]
[1746975443480,0.30648053,652.57,651.96,1.14110569]
[1746975444081,0.30648053,652.57,651.97,0.25736619]
[1746975444383,0.30648053,652.57,651.98,1.14110569]
[1746975444786,0.30648053,652.57,651.99,0.25736619]
[1746975445286,0.30648053,652.57,652.0,1.14110569]
[1746975445786,0.30648053,652.57,652.01,0.25736619]
[1746975445983,0.30648053,652.57,652.02,1.14110569]
[1746975446385,0.30648053,652.57,652.03,0.25736619]
[1746975446579,0.30648053,652.57,652.04,1.14110569]
[1746975447182,0.30648053,652.57,652.05,0.25736619]
[1746975447787,0.30648053,652.57,652.06,1.14110569]
[1746975448087,0.30648053,652.57,652.07,0.25736619]
[1746975448287,0.30648053,652.57,652.08,1.14110569]
[1746975448686,0.30648053,652.57,652.09,0.25736619]
[1746975449087,0.30648053,652.57,652.1,1.14110569]
[1746975449482,0.30648053,652.57,652.11,0.25736619]
[1746975450182,0.30648053,652.57,652.12,1.14110569]
[1746975450787,0.30648053,652.57,652.13,0.25736619]
[1746975451486,0.30648053,652.57,652.14,1.14110569]
[1746975451688,0.30648053,652.57,652.15,0.25736619]
[1746975452187,0.30648053,652.57,652.16,1.14110569]
[1746975452882,0.30648053,652.57,652.17,0.25736619]
[1746975453180,0.30648053,652.57,652.18,1.14110569]
[1746975453389,0.30648053,652.57,652.19,0.25736619]
[1746975453787,0.30648053,652.57,652.2,1.14110569]
[1746975453988,0.30648053,652.57,652.21,0.25736619]
[1746975454287,0.30648053,652.57,652.22,1.14110569]
[1746975454885,0.30648053,652.57,652.23,0.25736619]
[1746975455387,0.30648053,652.57,652.24,1.14110569]
[1746975455581,0.30648053,652.57,652.25,0.25736619]
[1746975456087,0.30648053,652.57,652.26,1.14110569]
[1746975456288,0.30648053,652.57,652.27,0.25736619]
[1746975456586,0.30648053,652.57,652.28,1.14110569]
[1746975460891,0.30648053,652.57,652.29,0.25736619]
[1746975461491,0.30648053,652.57,652.3,1.14110569]
[1746975461893,0.30648053,652.57,652.31,0.25736619]
[1746975462294,0.30648053,652.57,652.32,1.14110569]
[1746975462994,0.30648053,652.57,652.33,0.25736619]
[1746975463396,0.30648053,652.57,652.34,1.14110569]
[1746975463996,0.30648053,652.57,652.35,0.25736619]
[1746975464799,0.30648053,652.57,652.36,1.14110569]
[1746975465798,0.30648053,652.57,652.37,0.25736619]
[1746975466098,0.30648053,652.57,652.38,1.14110569]
[1746975466398,0.30648053,652.57,652.39,0.25736619]
[1746975466694,0.30648053,652.57,652.4,1.14110569]
[1746975466899,0.30648053,652.57,652.4,1.39847188]
[1746975467098,0.30648053,652.57,652.41,0.25736619]
[1746975467300,0.30648053,652.57,652.42,1.14110569]
[1746975467499,0.30648053,652.57,652.42,1.39847188]
[1746975467801,0.30648053,652.57,652.43,0.25736619]
[1746975467998,0.30648053,652.57,652.44,1.39847188]
[1746975468299,0.30648053,652.57,652.45,1.39847188]
[1746975468696,0.30648053,652.57,652.46,0.25736619]
[1746975468902,0.30648053,652.57,652.46,1.39847188]
[1746975469399,0.30648053,652.57,652.47,1.39847188]
[1746975469600,0.30648053,652.57,652.48,1.39847188]
[1746975469900,0.30648053,652.57,652.49,1.14110569]
[1746975470099,0.30648053,652.57,652.49,1.39847188]
[1746975470400,0.30648053,652.57,652.5,0.25736619]
[1746975470902,0.30648053,652.57,652.51,1.14110569]
[1746975471397,0.30648053,652.57,652.52,0.25736619]
[1746975471901,0.30648053,652.57,652.53,1.14110569]
[1746975472297,0.30648053,652.57,652.54,0.25736619]
[1746975472702,0.30648053,652.57,652.55,1.14110569]
[1746975473001,0.30648053,652.57,652.56,0.25736619]
[1746975473202,0.30648053,652.57,652.56,1.39847188]
[1746975478506,0.30648053,652.57,652.56,1.14110569]
[1746975478707,0.30648053,652.57,652.56,1.39847973]
[1746975487010,0.30648053,652.57,652.56,1.14110569]
[1746975487211,0.30648053,652.57,651.13,1.14110569]
[1746975487405,0.30648053,652.57,652.56,0.25733358]
[1746975487604,0.30648053,652.57,652.56,1.14110569]
[1746975487910,0.30648053,652.57,652.56,0.25733358]
[1746975488310,0.30648053,652.57,651.18,0.25733358]
[1746975488512,0.30648053,652.57,651.19,0.30713002]
[1746975488713,0.30648053,652.57,651.19,1.97185948]
[1746975489008,0.30648053,652.57,651.2,0.25733358]
[1746975489312,0.30648053,652.57,651.21,1.70555986]
[1746975489517,0.30648053,652.57,651.24,0.96632303]
[1746975489814,0.30648053,652.57,651.25,1.44820741]
[1746975490010,0.30648053,652.57,651.25,1.70554099]
[1746975490210,0.30648053,652.57,651.26,0.30709701]
[1746975490514,0.30648053,652.57,651.27,1.14110569]
[1746975490714,0.30648053,652.57,651.28,0.30708758]
[1746975491011,0.30648053,652.57,651.29,1.14110569]
[1746975491214,0.30648053,652.57,651.3,0.30707815]
[1746975491613,0.30648053,652.57,651.31,1.14110569]
[1746975491813,0.30648053,652.57,651.32,0.30706872]
[1746975492115,0.30648053,652.57,651.33,0.25733358]
[1746975492316,0.30648053,652.57,651.34,0.96632303]
[1746975492616,0.30648053,652.57,651.34,1.22365661]
[1746975492815,0.30648053,652.57,651.35,1.39843927]
[1746975493111,0.30648053,652.57,651.36,0.25733358]
[1746975493415,0.30648053,652.57,651.37,0.25733358]
[1746975493618,0.30648053,652.57,651.38,0.25733358]
[1746975493816,0.30648053,652.57,651.39,1.14110569]
[1746975494117,0.30648053,652.57,651.39,1.39843927]
[1746975494417,0.30648053,652.57,651.4,1.39843927]
[1746975494710,0.30648053,652.57,651.41,1.39843927]
[1746975494915,0.30648053,652.57,651.42,0.25733358]
[1746975495109,0.30648053,652.57,651.62,0.96632303]
[1746975495716,0.30648053,652.57,651.63,1.39843927]
[1746975496015,0.30648053,652.57,651.64,1.14110569]
[1746975496212,0.30648053,652.57,651.64,1.39843927]
[1746975496515,0.30648053,652.57,651.65,1.39843927]
[1746975496717,0.30648053,652.57,651.71,0.96632303]
[1746975497016,0.30648053,652.57,651.72,1.14110569]
[1746975497417,0.30648053,652.57,651.73,1.14110569]
[1746975497918,0.30648053,652.57,651.74,1.39843927]
[1746975498218,0.30648053,652.57,651.75,0.25733358]
[1746975498416,0.30648053,652.57,651.76,1.14110569]
[1746975498722,0.30648053,652.57,651.77,1.14110569]
[1746975498913,0.30648053,652.57,651.77,1.39843927]
[1746975499217,0.30648053,652.57,651.78,1.14110569]
[1746975499417,0.30648053,652.57,651.78,1.39843927]
[1746975499620,0.30648053,652.57,651.79,0.25733358]
[1746975499818,0.30648053,652.57,651.79,1.39843927]
[1746975500118,0.30648053,652.57,651.66,0.96632303]
[1746975500119,0.30648053,652.57,651.8,1.39843927]
[1746975500414,0.30648053,652.57,651.81,0.25733358]
[1746975500620,0.30648053,652.57,651.82,1.14110569]
[1746975500919,0.30648053,652.57,651.82,1.39843927]
[1746975501122,0.30648053,652.57,651.83,1.39843927]
[1746975501422,0.30648053,652.57,651.84,0.25733358]
[1746975501622,0.30648053,652.57,651.85,1.14110569]
[1746975501822,0.30648053,652.57,651.85,1.39843927]
[1746975502022,0.30648053,652.57,651.86,1.14110569]
[1746975502324,0.30648053,652.57,651.87,1.39841943]
[1746975502521,0.30648053,652.57,651.88,1.14110569]
[1746975502725,0.30648053,652.57,651.89,0.25731374]
[1746975502918,0.30648053,652.57,651.9,1.14110569]
[1746975503122,0.30648053,652.57,651.9,1.39841943]
[1746975503322,0.30648053,652.57,651.91,1.14110569]
[1746975503522,0.30648053,652.57,651.91,1.39841943]
[1746975503721,0.30648053,652.57,651.92,1.39841943]
[1746975504123,0.30648053,652.57,651.93,0.25731374]
[1746975504422,0.30648053,652.57,651.94,1.39841943]
[1746975504819,0.30648053,652.57,651.95,1.39841943]
[1746975505125,0.30648053,652.57,651.96,0.25731374]
[1746975505424,0.30648053,652.57,651.97,1.14110569]
[1746975505725,0.30648053,652.57,651.97,1.39841943]
[1746975505926,0.30648053,652.57,651.98,0.25731374]
[1746975506225,0.30648053,652.57,651.99,1.14110569]
[1746975506421,0.30648053,652.57,651.99,1.39841943]
[1746975506726,0.30648053,652.57,652.0,1.14110569]
[1746975506924,0.30648053,652.57,652.0,1.39841943]
[1746975507121,0.30648053,652.57,652.01,1.14110569]
[1746975507321,0.30648053,652.57,652.01,1.39841943]
[1746975507527,0.30648053,652.57,652.02,0.25731374]
[1746975508025,0.30648053,652.57,652.03,0.25731374]
[1746975508226,0.30648053,652.57,652.04,1.14110569]
[1746975508528,0.30648053,652.57,652.05,0.25731374]
[1746975508726,0.30648053,652.57,652.06,1.14110569]
[1746975508926,0.30648053,652.57,652.06,1.39841943]
[1746975509130,0.30648053,652.57,652.07,1.39841943]
[1746975509730,0.30648053,652.57,652.08,1.39841943]
[1746975510031,0.30648053,652.57,652.09,0.25731374]
[1746975510230,0.30648053,652.57,652.08,1.14110569]
[1746975510428,0.30648053,652.57,652.09,0.25731646]
[1746975511735,0.30648053,652.57,652.1,0.25731646]
[1746975512029,0.30648053,652.57,652.08,1.14110569]
[1746975512330,0.30648053,652.57,652.09,0.25730658]
[1746975512530,0.30648053,652.57,652.1,1.14110569]
[1746975512730,0.30648053,652.57,652.1,1.39841227]
[1746975512934,0.30648053,652.57,652.11,0.25730658]
[1746975513235,0.30648053,652.57,652.12,1.39841227]
[1746975513635,0.30648053,652.57,652.13,1.14110569]
[1746975513934,0.30648053,652.57,652.14,0.25730658]
[1746975514129,0.30648053,652.57,652.15,1.14110569]
[1746975514435,0.30648053,652.57,652.16,0.25730658]
[1746975514834,0.30648053,652.57,652.17,1.14110569]
[1746975515134,0.30648053,652.57,652.18,0.25730658]
[1746975515533,0.30648053,652.57,652.19,1.14110569]
[1746975516034,0.30648053,652.57,652.2,0.25730658]
[1746975516334,0.30648053,652.57,652.21,1.39841227]
[1746975516734,0.30648053,652.57,652.22,0.25730658]
[1746975516935,0.30648053,652.57,652.23,1.14110569]
[1746975517133,0.30648053,652.57,652.23,1.39841227]
[1746975517534,0.30648053,652.57,652.24,0.25730658]
[1746975517728,0.30648053,652.57,652.25,1.14110569]
[1746975517929,0.30648053,652.57,652.25,1.39841227]
[1746975518129,0.30648053,652.57,652.26,1.14110569]
[1746975518330,0.30648053,652.57,652.26,1.39841227]
[1746975518535,0.30648053,652.57,652.27,1.14110569]
[1746975518731,0.30648053,652.57,652.27,1.39841227]
[1746975519135,0.30648053,652.57,652.28,1.39841227]
[1746975519336,0.30648053,652.57,652.29,0.25730658]
[1746975519536,0.30648053,652.57,652.3,1.14110569]
[1746975519938,0.30648053,652.57,652.3,1.39841227]
[1746975520339,0.30648053,652.57,652.31,1.39841227]
[1746975520735,0.30648053,652.57,652.32,1.14110569]
[1746975520939,0.30648053,652.57,652.32,1.39841227]
[1746975521239,0.30648053,652.57,652.33,0.25730658]
[1746975521439,0.30648053,652.57,652.34,1.14110569]
[1746975521638,0.30648053,652.57,652.34,1.39841227]
[1746975521933,0.30648053,652.57,652.35,1.39841227]
[1746975522339,0.30648053,652.57,652.36,0.25730658]
[1746975522539,0.30648053,652.57,652.36,1.39841227]
[1746975522835,0.30648053,652.57,652.37,1.39841227]
[1746975523139,0.30648053,652.57,652.38,1.14110569]
[1746975523441,0.30648053,652.57,652.39,0.25730658]
[1746975523736,0.30648053,652.57,652.4,1.39841227]
[1746975523941,0.30648053,652.57,652.41,1.14110569]
[1746975524142,0.30648053,652.57,652.41,1.39841227]
[1746975524342,0.30648053,652.57,652.42,1.39841227]
[1746975524739,0.30648053,652.57,652.43,1.39841227]
[1746975525045,0.30648053,652.57,652.44,0.25730658]
[1746975525642,0.30648053,652.57,652.45,1.14110569]
[1746975526145,0.30648053,652.57,652.46,0.25730658]
[1746975526644,0.30648053,652.57,652.47,1.14110569]
[1746975526847,0.30648053,652.57,652.48,0.25730658]
[1746975527046,0.30648053,652.57,652.49,1.14110569]
[1746975527546,0.30648053,652.57,652.5,0.25730658]
[1746975527842,0.30648053,652.57,652.51,1.14110569]
[1746975528245,0.30648053,652.57,652.52,0.25730658]
[1746975528645,0.30648053,652.57,652.53,1.14110569]
[1746975529249,0.30648053,652.57,652.54,0.25730658]
[1746975529847,0.30648053,652.57,652.55,1.14110569]
[1746975530146,0.30648053,652.57,652.56,0.25730658]
[1746975530348,0.30648053,652.57,652.56,1.39841227]
[1746975547669,0.30648053,652.57,652.56,1.14110569]
[1746975548163,0.30648053,652.57,651.62,1.14110569]
[1746975548567,0.30648053,652.57,651.63,1.14110569]
[1746975548768,0.30648053,652.57,651.63,1.66474379]
[1746975548967,0.30648053,652.57,651.64,0.25727454]
[1746975549168,0.30648053,652.57,651.65,1.14110569]
[1746975549370,0.30648053,652.57,651.65,1.39838023]
[1746975549568,0.30648053,652.57,651.66,0.25727454]
[1746975549766,0.30648053,652.57,651.66,1.39838023]
[1746975550070,0.30648053,652.57,651.67,1.39838023]
[1746975550269,0.30648053,652.57,651.67,1.14110569]
[1746975550470,0.30648053,652.57,651.68,0.25725932]
[1746975550666,0.30648053,652.57,651.69,1.14110569]
[1746975550870,0.30648053,652.57,651.7,1.14110569]
[1746975551268,0.30648053,652.57,651.71,0.25725932]
[1746975551472,0.30648053,652.57,651.72,1.14110569]
[1746975551669,0.30648053,652.57,651.73,1.14110569]
[1746975551875,0.30648053,652.57,651.74,0.25725932]
[1746975552076,0.30648053,652.57,651.74,1.39836501]
[1746975552374,0.30648053,652.57,651.75,0.25725932]
[1746975552674,0.30648053,652.57,651.76,1.14110569]
[1746975553877,0.30648053,652.57,651.77,0.25725932]
[1746975554070,0.30648053,652.57,651.78,1.14110569]
[1746975554269,0.30648053,652.57,651.78,1.39836501]
[1746975554474,0.30648053,652.57,651.79,0.25725932]
[1746975554871,0.30648053,652.57,651.8,1.39836501]
[1746975555174,0.30648053,652.57,651.81,1.39836501]
[1746975555376,0.30648053,652.57,651.82,0.25725932]
[1746975555577,0.30648053,652.57,651.83,1.14110569]
[1746975555777,0.30648053,652.57,651.83,1.39836501]
[1746975556078,0.30648053,652.57,651.84,1.14110569]
[1746975556277,0.30648053,652.57,651.84,1.39836501]
[1746975556478,0.30648053,652.57,651.85,0.25725932]
[1746975556781,0.30648053,652.57,651.85,1.39836501]
[1746975556977,0.30648053,652.57,651.86,1.39836501]
[1746975557273,0.30648053,652.57,651.87,0.25725932]
[1746975557477,0.30648053,652.57,651.88,1.14110569]
[1746975557878,0.30648053,652.57,651.89,0.25725932]
[1746975558178,0.30648053,652.57,651.9,0.25725932]
[1746975558378,0.30648053,652.57,651.91,1.14110569]
[1746975558877,0.30648053,652.57,651.92,0.25725932]
[1746975559279,0.30648053,652.57,651.93,1.14110569]
[1746975559879,0.30648053,652.57,651.94,0.25725932]
[1746975560280,0.30648053,652.57,651.95,1.14110569]
[1746975560580,0.30648053,652.57,651.96,0.25725932]
[1746975561073,0.30648053,652.57,651.97,1.14110569]
[1746975561375,0.30648053,652.57,651.98,0.25725932]
[1746975561579,0.30648053,652.57,651.99,1.14110569]
[1746975562181,0.30648053,652.57,652.0,0.25725932]
[1746975562578,0.30648053,652.57,652.01,1.14110569]
[1746975562881,0.30648053,652.57,652.02,0.25725932]
[1746975563078,0.30648053,652.57,652.03,1.14110569]
[1746975563681,0.30648053,652.57,652.04,0.25725932]
[1746975564082,0.30648053,652.57,652.05,1.14110569]
[1746975564480,0.30648053,652.57,652.06,0.25725932]
[1746975564680,0.30648053,652.57,652.07,1.14110569]
[1746975565382,0.30648053,652.57,650.81,1.14110569]
[1746975565582,0.30648053,652.57,652.08,0.25772089]
[1746975565784,0.30648053,652.57,650.83,0.25772089]